bitfinex/quotes_BTCUSD_20240718
["timestamp","ask_amount","ask_price","bid_price","bid_amount"]
[1721278996181,0.00083,64676.0,64675.0,2.35484313]
[1721278996365,0.00083,64676.0,64675.0,2.37341637]
[1721278996970,0.00083,64676.0,64675.0,2.55570394]
[1721278997148,0.00083,64676.0,64675.0,2.43760581]
[1721278997350,0.00083,64676.0,64675.0,2.37341637]
[1721278997546,0.00083,64676.0,64675.0,2.43760752]
[1721278997752,0.00083,64676.0,64675.0,2.55565502]
[1721278997995,0.00083,64676.0,64675.0,2.37341824]
[1721278998428,0.00083,64676.0,64675.0,2.60126877]
[1721278998628,0.00083,64676.0,64675.0,2.6012681]
[1721278999034,0.00083,64676.0,64675.0,2.37341573]
[1721278999584,0.00083,64676.0,64675.0,2.61984132]
[1721278999788,0.00083,64676.0,64675.0,2.37341573]
[1721279000392,0.00083,64676.0,64675.0,2.55565209]
[1721279000596,0.00083,64676.0,64675.0,2.43760554]
[1721279000807,0.00083,64676.0,64675.0,2.60126857]
[1721279001008,0.00083,64676.0,64675.0,2.37341568]
[1721279001442,0.00083,64676.0,64675.0,2.6012683]
[1721279001841,0.00083,64676.0,64675.0,2.69095315]
[1721279002067,0.00083,64676.0,64675.0,2.73656936]
[1721279002265,0.00083,64676.0,64675.0,2.73644186]
[1721279002609,0.00083,64676.0,64675.0,2.68044186]
[1721279003321,0.00083,64676.0,64675.0,2.87554146]
[1721279004423,0.00083,64676.0,64675.0,2.73644186]
[1721279005154,0.00083,64676.0,64675.0,2.73643674]
[1721279006665,0.00083,64676.0,64675.0,2.68043674]
[1721279006962,0.00083,64676.0,64675.0,2.53053674]
[1721279007089,0.00083,64676.0,64675.0,2.60113674]
[1721279007445,0.00083,64676.0,64675.0,2.74023634]
[1721279008193,0.00083,64676.0,64675.0,2.7401582]
[1721279009254,0.00083,64676.0,64675.0,2.6010586]
[1721279011267,0.00083,64676.0,64675.0,2.29064919]
[1721279011471,0.00083,64676.0,64675.0,2.73176172]
[1721279011809,0.00083,64676.0,64675.0,2.35754003]
[1721279012019,0.00083,64676.0,64675.0,2.87084522]
[1721279014591,0.00083,64676.0,64675.0,2.8148141]
[1721279014795,0.00083,64676.0,64675.0,2.67571407]
[1721279015000,0.00083,64676.0,64675.0,2.60061407]
[1721279017021,0.00083,64676.0,64675.0,2.55191407]
[1721279017244,0.14273,64676.0,64675.0,1.49403092]
[1721279017436,0.14273,64676.0,64675.0,0.84201063]
[1721279017804,0.14273,64676.0,64675.0,0.84204267]
[1721279017996,0.14273,64676.0,64675.0,0.78012867]
[1721279018264,0.14273,64676.0,64675.0,0.76612867]
[1721279018463,0.14273,64676.0,64675.0,0.77712867]
[1721279019147,0.14273,64676.0,64675.0,0.77312867]
[1721279019359,0.14273,64676.0,64675.0,0.6337276]
[1721279019487,0.14273,64676.0,64675.0,0.3244896]
[1721279019688,0.14273,64676.0,64675.0,0.3254896]
[1721279019892,0.14273,64676.0,64675.0,0.3144896]
[1721279020276,0.14273,64676.0,64675.0,0.3244896]
[1721279020980,0.14273,64676.0,64675.0,0.6337276]
[1721279021393,0.14273,64676.0,64675.0,0.6437276]
[1721279021916,0.14273,64676.0,64675.0,0.6547276]
[1721279024585,0.14273,64676.0,64675.0,0.3454896]
[1721279024865,0.14403,64676.0,64675.0,0.3454896]
[1721279025631,0.14273,64676.0,64675.0,0.3454896]
[1721279026710,0.14273,64676.0,64675.0,0.6547276]
[1721279028220,0.14273,64676.0,64675.0,0.9639656]
[1721279033980,0.14273,64676.0,64675.0,0.03648886]
[1721279034174,0.14403,64676.0,64675.0,0.03648886]
[1721279034393,0.369246,64676.0,64675.0,0.03648886]
[1721279034674,0.369246,64676.0,64675.0,0.031913]
[1721279034675,0.675779,64676.0,64675.0,0.031913]
[1721279034844,0.675779,64676.0,64675.0,0.010913]
[1721279035068,1.294245,64676.0,64675.0,0.006913]
[1721279035905,0.527029,64665.0,64664.0,0.466]
[1721279036096,0.0013,64655.0,64654.0,0.466]
[1721279036442,0.0013,64655.0,64648.0,0.7929]
[1721279036443,0.0631,64653.0,64649.0,0.154679]
[1721279036792,0.0631,64653.0,64650.0,0.154679]
[1721279037000,0.0631,64653.0,64644.0,0.309385]
[1721279037001,0.217771,64653.0,64644.0,0.309385]
[1721279037200,0.217771,64653.0,64647.0,0.155598]
[1721279037563,0.300171,64653.0,64648.0,0.154683]
[1721279037764,0.300171,64653.0,64652.0,1.28021233]
[1721279038268,0.1442,64653.0,64652.0,1.28021233]
[1721279038459,0.1452,64653.0,64652.0,1.29121233]
[1721279038892,0.1442,64653.0,64652.0,1.28421233]
[1721279039360,0.1442,64653.0,64652.0,1.28721233]
[1721279042019,0.1442,64653.0,64652.0,0.01121233]
[1721279042435,0.1442,64653.0,64652.0,0.007]
[1721279042958,0.1442,64653.0,64652.0,0.93900702]
[1721279043403,0.1442,64653.0,64652.0,0.62965902]
[1721279043579,0.1442,64653.0,64652.0,0.01125528]
[1721279045607,0.1442,64653.0,64652.0,0.16592928]
[1721279050612,0.1442,64653.0,64652.0,0.47527728]
[1721279052589,0.1455,64653.0,64652.0,0.47527728]
[1721279052855,0.1442,64653.0,64652.0,0.47527728]
[1721279054361,0.1442,64653.0,64652.0,0.16592928]
[1721279054362,0.1455,64653.0,64652.0,0.16592928]
[1721279055240,0.300171,64653.0,64652.0,0.01125528]
[1721279055607,0.609514,64653.0,64652.0,0.01125528]
[1721279055784,0.609514,64653.0,64652.0,0.007]
[1721279056756,0.370771,64653.0,64652.0,0.007]
[1721279056948,0.370771,64653.0,64652.0,0.004]
[1721279057259,0.308971,64653.0,64648.0,0.154683]
[1721279057576,0.1425,64650.0,64648.0,0.154683]
[1721279057785,0.1425,64650.0,64649.0,0.154681]
[1721279059118,0.1425,64650.0,64649.0,0.773405]
[1721279059119,0.0635,64650.0,64649.0,0.773405]
[1721279059336,0.0635,64650.0,64649.0,0.464043]
[1721279059927,0.0635,64650.0,64649.0,0.773405]
[1721279060295,0.0635,64650.0,64649.0,0.776355]
[1721279060531,0.0635,64650.0,64649.0,0.466993]
[1721279060736,0.0635,64650.0,64649.0,0.464906]
[1721279061071,0.0635,64650.0,64649.0,0.469906]
[1721279061246,0.0635,64650.0,64649.0,0.473906]
[1721279061877,0.0635,64650.0,64649.0,0.779268]
[1721279062097,0.0635,64650.0,64649.0,0.785268]
[1721279063056,0.0635,64650.0,64649.0,0.780268]
[1721279063260,0.0635,64650.0,64649.0,0.90872072]
[1721279063463,0.0645,64650.0,64649.0,0.91472072]
[1721279063659,0.001,64650.0,64649.0,0.91472072]
[1721279063866,0.001,64650.0,64649.0,1.52076446]
[1721279064070,0.0797,64658.0,64657.0,0.77331]
[1721279064273,0.0797,64658.0,64657.0,1.05613267]
[1721279064787,0.0797,64658.0,64657.0,0.92769174]
[1721279065013,0.0797,64658.0,64657.0,1.05613317]
[1721279065254,0.0797,64658.0,64657.0,0.92769174]
[1721279065497,0.0797,64658.0,64657.0,1.05613483]
[1721279065733,0.0635,64659.0,64658.0,0.773297]
[1721279065966,0.0635,64659.0,64658.0,0.90174009]
[1721279067598,0.0635,64659.0,64658.0,0.90374009]
[1721279067797,0.0635,64659.0,64658.0,0.9080276]
[1721279068153,0.0635,64659.0,64658.0,0.00628751]
[1721279068154,0.1453,64659.0,64658.0,0.00628751]
[1721279068378,0.1453,64659.0,64658.0,0.01028751]
[1721279069118,0.1453,64659.0,64658.0,0.00628751]
[1721279069494,0.1453,64659.0,64658.0,0.00428751]
[1721279069920,0.1453,64659.0,64656.0,0.154663]
[1721279070092,0.1432,64658.0,64656.0,0.154663]
[1721279070292,0.1445,64657.0,64656.0,0.154663]
[1721279071056,0.1432,64657.0,64656.0,0.463992]
[1721279071945,0.1432,64657.0,64656.0,0.465992]
[1721279072148,0.1432,64657.0,64656.0,0.463992]
[1721279072534,0.1432,64657.0,64656.0,0.469992]
[1721279072918,0.1432,64657.0,64656.0,0.470992]
[1721279073327,0.1432,64657.0,64656.0,0.469992]
[1721279073741,0.1432,64657.0,64656.0,0.474992]
[1721279074042,0.1432,64657.0,64656.0,0.60343379]
[1721279074282,0.0624,64657.0,64656.0,0.474992]
[1721279080003,0.0624,64657.0,64656.0,0.784321]
[1721279081115,0.0619,64659.0,64656.0,0.320329]
[1721279081317,0.0619,64659.0,64658.0,0.463978]
[1721279082558,0.0619,64659.0,64658.0,0.467978]
[1721279082940,0.0619,64659.0,64658.0,0.47225864]
[1721279083379,0.0619,64659.0,64658.0,0.47425864]
[1721279083830,0.06293,64662.0,64661.0,0.154652]
[1721279084043,0.06293,64662.0,64661.0,0.463957]
[1721279084366,0.06293,64662.0,64661.0,0.46823764]
[1721279085447,0.06393,64662.0,64661.0,0.46823764]
[1721279089387,0.06523,64662.0,64661.0,0.46823764]
[1721279091345,0.14483,64662.0,64661.0,0.46823764]
[1721279094497,0.14483,64662.0,64661.0,0.15893264]
[1721279096544,0.14353,64662.0,64661.0,0.15893264]
[1721279096964,0.00183,64662.0,64661.0,0.15893264]
[1721279099119,0.14333,64662.0,64661.0,0.15893264]
[1721279100466,0.14333,64662.0,64661.0,0.00428064]
[1721279100684,0.14333,64662.0,64659.0,0.154655]
[1721279100883,0.0771,64657.0,64654.0,0.309335]
[1721279101082,0.0013,64655.0,64654.0,0.309335]
[1721279101293,0.0013,64655.0,64654.0,0.59244602]
[1721279101839,0.0013,64655.0,64654.0,0.464002]
[1721279102042,0.0013,64655.0,64654.0,0.469002]
[1721279102483,0.0013,64655.0,64654.0,0.464002]
[1721279102664,0.0013,64655.0,64652.0,0.154673]
[1721279102863,0.0013,64655.0,64654.0,0.007]
[1721279103269,0.0013,64655.0,64654.0,0.013]
[1721279103477,0.0644,64656.0,64654.0,0.167668]
[1721279103652,0.0013,64661.0,64655.0,0.12845251]
[1721279103653,0.1439,64661.0,64655.0,0.12845251]
[1721279104022,0.0661,64663.0,64661.0,0.154652]
[1721279105407,0.00183,64662.0,64661.0,0.154652]
[1721279106657,0.00183,64662.0,64661.0,0.463957]
[1721279108639,0.00183,64662.0,64661.0,1.51658429]
[1721279108802,0.00183,64662.0,64661.0,1.62628429]
[1721279109159,0.00183,64662.0,64661.0,1.95858929]
[1721279109375,0.00183,64662.0,64661.0,2.12817382]
[1721279109566,0.00183,64662.0,64661.0,2.5174868]
[1721279109967,0.00183,64662.0,64661.0,2.60148401]
[1721279110167,0.00183,64662.0,64661.0,2.73141502]
[1721279110322,0.00183,64662.0,64661.0,2.71741502]
[1721279110522,0.00083,64662.0,64661.0,2.60148401]
[1721279110729,0.00083,64662.0,64661.0,2.61548401]
[1721279110934,0.00083,64662.0,64661.0,2.62148401]
[1721279111339,0.00083,64662.0,64661.0,2.61548401]
[1721279111553,0.00083,64662.0,64661.0,2.70815633]
[1721279111751,0.00083,64662.0,64661.0,2.72215633]
[1721279112368,0.00083,64662.0,64661.0,2.59370323]
[1721279112575,0.00083,64662.0,64661.0,2.58073875]
[1721279112745,0.00083,64662.0,64661.0,2.62943875]
[1721279112943,0.00083,64662.0,64661.0,2.58501559]
[1721279113511,0.00083,64662.0,64661.0,2.70318084]
[1721279113714,0.00083,64662.0,64661.0,2.63371559]
[1721279113920,0.00083,64662.0,64661.0,2.72633325]
[1721279114189,0.00083,64662.0,64661.0,2.63371559]
[1721279114394,0.00083,64662.0,64661.0,2.72633325]
[1721279114569,0.00083,64662.0,64661.0,2.63371559]
[1721279115157,0.00083,64662.0,64661.0,2.58501559]
[1721279115377,0.00083,64662.0,64661.0,2.39346087]
[1721279115581,0.00083,64662.0,64661.0,2.05058058]
[1721279115785,0.00083,64662.0,64661.0,1.98113487]
[1721279115987,0.00083,64662.0,64661.0,1.85273058]
[1721279116160,0.00083,64662.0,64661.0,1.98113498]
[1721279116566,0.00083,64662.0,64661.0,2.02983431]
[1721279117466,0.00083,64662.0,64661.0,2.07611021]
[1721279118075,0.00083,64662.0,64661.0,1.94770649]
[1721279118277,0.00083,64662.0,64661.0,2.0761104]
[1721279118877,0.00083,64662.0,64661.0,2.13660442]
[1721279119501,0.00083,64662.0,64661.0,2.09033436]
[1721279122247,0.00083,64662.0,64661.0,2.21873938]
[1721279122475,0.00083,64662.0,64661.0,2.09033498]
[1721279122678,0.00083,64662.0,64661.0,2.29033498]
[1721279123743,0.00083,64662.0,64661.0,2.33659153]
[1721279124021,0.00083,64662.0,64661.0,2.94250584]
[1721279124255,0.00083,64677.0,64676.0,1.082315]
[1721279124427,0.00083,64677.0,64676.0,1.30729674]
[1721279124641,0.00083,64677.0,64676.0,1.31153631]
[1721279125561,0.00083,64677.0,64676.0,1.43992219]
[1721279125733,0.00083,64677.0,64676.0,1.43992136]
[1721279126059,0.00083,64677.0,64676.0,1.92285436]
[1721279126272,0.00083,64677.0,64676.0,1.87415436]
[1721279126676,0.00083,64677.0,64676.0,1.87215436]
[1721279127197,0.00083,64677.0,64676.0,2.13185436]
[1721279127652,0.00083,64677.0,64676.0,2.20685436]
[1721279127858,0.00083,64677.0,64676.0,2.22865436]
[1721279128054,0.00083,64677.0,64676.0,2.27735436]
[1721279128466,0.00083,64677.0,64676.0,2.26933794]
[1721279128670,0.00083,64677.0,64676.0,2.28333794]
[1721279128865,0.00083,64677.0,64676.0,2.27333794]
[1721279129025,0.00083,64677.0,64676.0,2.28733794]
[1721279130420,0.00083,64677.0,64676.0,2.27333794]
[1721279130839,0.00083,64677.0,64676.0,2.25933794]
[1721279131068,0.00083,64677.0,64676.0,2.27333794]
[1721279131218,0.00083,64677.0,64676.0,2.28733794]
[1721279131430,0.00083,64677.0,64676.0,2.15896931]
[1721279131603,0.00083,64677.0,64676.0,2.28733327]
[1721279131954,0.00083,64677.0,64676.0,2.29090896]
[1721279134701,0.00083,64677.0,64676.0,2.60014196]
[1721279137967,0.00083,64677.0,64676.0,2.471778]
[1721279138167,0.00083,64677.0,64676.0,2.60014509]
[1721279140391,0.00083,64677.0,64676.0,2.29091209]
[1721279140588,0.00083,64677.0,64676.0,2.22841209]
[1721279141194,0.00083,64677.0,64676.0,2.100045]
[1721279141352,0.00083,64677.0,64676.0,2.22841203]
[1721279144905,0.00083,64677.0,64676.0,2.100045]
[1721279145099,0.00083,64677.0,64676.0,2.22841203]
[1721279146497,0.00083,64677.0,64676.0,2.25317464]
[1721279146695,0.00083,64683.0,64682.0,1.130917]
[1721279146846,0.00083,64683.0,64682.0,1.50726577]
[1721279147040,0.00083,64683.0,64682.0,1.61504934]
[1721279147723,0.00083,64683.0,64682.0,1.92425434]
[1721279148485,0.00083,64683.0,64682.0,1.93825434]
[1721279149453,0.00083,64683.0,64682.0,1.95225434]
[1721279150450,0.00083,64683.0,64682.0,1.99839119]
[1721279150859,0.00083,64683.0,64682.0,1.95225434]
[1721279151043,0.00083,64683.0,64682.0,1.99842507]
[1721279151238,0.00083,64683.0,64682.0,1.92782507]
[1721279151239,0.06403,64683.0,64682.0,1.92782507]
[1721279151444,0.06403,64683.0,64682.0,1.90354862]
[1721279151812,0.06403,64683.0,64682.0,1.95224862]
[1721279152159,0.00083,64683.0,64682.0,1.95224862]
[1721279152388,0.00083,64683.0,64682.0,1.97081941]
[1721279152564,0.00083,64683.0,64682.0,2.54427163]
[1721279152763,0.00083,64683.0,64682.0,2.0215133]
[1721279152993,0.00083,64683.0,64682.0,2.20152171]
[1721279153189,0.00083,64683.0,64682.0,2.0215133]
[1721279153410,0.00083,64683.0,64682.0,2.54427148]
[1721279153604,0.00083,64683.0,64682.0,2.56735971]
[1721279153795,0.00083,64683.0,64682.0,2.4750068]
[1721279153996,0.00083,64683.0,64682.0,2.47500463]
[1721279154200,0.00083,64683.0,64682.0,2.63639979]
[1721279154353,0.00083,64683.0,64682.0,2.56708481]
[1721279154566,0.00083,64683.0,64682.0,2.4746452]
[1721279154972,0.00083,64683.0,64682.0,2.56710137]
[1721279155185,0.00083,64683.0,64682.0,2.56710653]
[1721279155659,0.00083,64683.0,64682.0,2.47465145]
[1721279156185,0.00083,64683.0,64682.0,2.54399898]
[1721279156378,0.00083,64683.0,64682.0,2.47465145]
[1721279156623,0.00083,64683.0,64682.0,2.55245145]
[1721279157387,0.00083,64683.0,64682.0,2.64490654]
[1721279157583,0.00083,64683.0,64682.0,2.47464358]
[1721279157769,0.00083,64683.0,64682.0,2.56710654]
[1721279157971,0.00083,64683.0,64682.0,2.47464358]
[1721279158198,0.00083,64683.0,64682.0,2.56711237]
[1721279158801,0.00083,64683.0,64682.0,2.54400209]
[1721279159199,0.00083,64683.0,64682.0,2.20125941]
[1721279159418,0.00083,64683.0,64682.0,2.54401721]
[1721279160520,0.00083,64683.0,64682.0,1.82388731]
[1721279160724,0.00083,64683.0,64682.0,2.54392342]
[1721279161100,0.06213,64683.0,64682.0,2.54392342]
[1721279161537,0.06213,64683.0,64682.0,2.20116563]
[1721279161723,0.06213,64683.0,64682.0,2.54392343]
[1721279162498,0.06213,64683.0,64682.0,2.20118422]
[1721279163183,0.06213,64683.0,64682.0,2.20127777]
[1721279163563,0.06213,64683.0,64682.0,2.13180291]
[1721279165556,0.06213,64683.0,64682.0,2.54396218]
[1721279166271,0.06213,64683.0,64682.0,1.82388731]
[1721279166476,0.06213,64683.0,64682.0,2.47447062]
[1721279167478,0.06213,64683.0,64682.0,2.56704458]
[1721279168460,0.06213,64683.0,64682.0,2.46047062]
[1721279169361,0.06213,64683.0,64682.0,2.41177062]
[1721279169609,0.06213,64683.0,64682.0,2.10394543]
[1721279169791,0.06213,64683.0,64682.0,2.41242126]
[1721279170191,0.06213,64683.0,64682.0,2.42642126]
[1721279170968,0.06213,64683.0,64682.0,2.47512126]
[1721279172768,0.06213,64683.0,64682.0,2.16664511]
[1721279172966,0.06213,64683.0,64682.0,2.47503455]
[1721279173109,0.06213,64683.0,64682.0,2.11827675]
[1721279173307,0.06213,64683.0,64682.0,2.47503423]
[1721279173845,0.06213,64683.0,64682.0,2.47502071]
[1721279175232,0.06213,64683.0,64682.0,2.42632071]
[1721279175633,0.06213,64683.0,64682.0,0.88233204]
[1721279175634,0.14083,64683.0,64682.0,0.88233204]
[1721279176092,0.14083,64683.0,64682.0,0.88234954]
[1721279176566,0.14083,64683.0,64682.0,1.16355454]
[1721279176767,0.14083,64683.0,64682.0,0.85434954]
[1721279176975,0.14083,64683.0,64682.0,0.88234954]
[1721279177419,0.14083,64683.0,64682.0,1.19155454]
[1721279178224,0.14083,64683.0,64682.0,1.06317731]
[1721279179887,0.14083,64683.0,64682.0,1.50076301]
[1721279180089,0.14083,64683.0,64682.0,1.59436301]
[1721279180520,0.14083,64683.0,64682.0,1.46598231]
[1721279180730,0.14083,64683.0,64682.0,1.5943589]
[1721279181698,0.14083,64683.0,64682.0,1.64072733]
[1721279182104,0.14083,64683.0,64682.0,1.5943589]
[1721279184202,0.14083,64683.0,64682.0,1.46598231]
[1721279184323,0.14083,64683.0,64682.0,1.64071649]
[1721279184523,0.14083,64683.0,64682.0,1.46598231]
[1721279184727,0.14083,64683.0,64682.0,1.64071592]
[1721279186355,0.14083,64683.0,64682.0,1.59435582]
[1721279186982,0.14083,64683.0,64682.0,1.58035582]
[1721279187178,0.14083,64683.0,64682.0,1.56635582]
[1721279187383,0.14083,64683.0,64682.0,1.58035582]
[1721279187644,0.14083,64683.0,64682.0,1.59435721]
[1721279188803,0.14083,64683.0,64682.0,1.56635721]
[1721279189135,0.14083,64683.0,64682.0,1.58035721]
[1721279189454,0.14083,64683.0,64682.0,1.59435721]
[1721279190783,0.14083,64683.0,64682.0,1.46598231]
[1721279190988,0.14083,64683.0,64682.0,1.64070767]
[1721279191155,0.14083,64683.0,64682.0,1.59435804]
[1721279192602,0.14083,64683.0,64682.0,1.59435804]
[1721279193916,0.14083,64683.0,64682.0,1.46598231]
[1721279194092,0.14083,64683.0,64682.0,1.5943572]
[1721279194299,0.14083,64683.0,64682.0,1.46598231]
[1721279194507,0.14083,64683.0,64682.0,1.5943572]
[1721279197097,0.14083,64683.0,64682.0,1.46598231]
[1721279197304,0.14083,64683.0,64682.0,1.5943572]
[1721279197999,0.14083,64683.0,64682.0,1.6430572]
[1721279198000,0.00083,64683.0,64682.0,1.6430572]
[1721279198228,0.00083,64683.0,64682.0,1.98585503]
[1721279198968,0.00083,64683.0,64682.0,1.93715503]
[1721279199213,0.00083,64683.0,64682.0,2.00666636]
[1721279199418,0.00083,64683.0,64682.0,1.93715503]
[1721279199614,0.00083,64683.0,64682.0,1.66387133]
[1721279199768,0.00083,64683.0,64682.0,1.64070132]
[1721279199978,0.00083,64683.0,64682.0,1.5943572]
[1721279200389,0.00083,64683.0,64682.0,1.594351]
[1721279200585,0.00083,64683.0,64682.0,1.59435087]
[1721279201588,0.00083,64683.0,64682.0,1.64305087]
[1721279201790,0.00083,64683.0,64682.0,1.71256696]
[1721279201978,0.00083,64683.0,64682.0,1.68939804]
[1721279203260,0.00083,64683.0,64682.0,1.99860304]
[1721279203709,0.00083,64683.0,64682.0,1.95225835]
[1721279203915,0.00083,64683.0,64682.0,1.6407052]
[1721279204065,0.00083,64683.0,64682.0,1.59435359]
[1721279204264,0.00083,64683.0,64682.0,1.66388136]
[1721279204565,0.00083,64683.0,64682.0,2.36456649]
[1721279205223,0.00083,64683.0,64682.0,2.36456995]
[1721279205540,0.00083,64683.0,64682.0,2.02178982]
[1721279205884,0.00083,64683.0,64682.0,2.49328952]
[1721279206079,0.00083,64683.0,64682.0,2.59059718]
[1721279206290,0.00083,64683.0,64682.0,2.47471755]
[1721279206485,0.00083,64683.0,64682.0,2.59059858]
[1721279206703,0.00083,64683.0,64682.0,2.59059794]
[1721279207020,0.00083,64683.0,64682.0,2.59064131]
[1721279207780,0.00083,64683.0,64682.0,2.47476067]
[1721279208182,0.00083,64683.0,64682.0,2.59064141]
[1721279209647,0.00083,64683.0,64682.0,2.47476067]
[1721279210250,0.00083,64683.0,64682.0,2.47481203]
[1721279211773,0.00083,64683.0,64682.0,2.50580203]
[1721279212946,0.00083,64683.0,64682.0,2.49180203]
[1721279213356,0.00083,64683.0,64682.0,1.84087731]
[1721279213551,0.00083,64683.0,64682.0,2.55610635]
[1721279213753,0.00083,64683.0,64682.0,1.82687731]
[1721279213954,0.00083,64683.0,64682.0,2.55609883]
[1721279214455,0.00083,64683.0,64682.0,2.57009883]
[1721279215060,0.00083,64683.0,64682.0,2.55609883]
[1721279215473,0.06293,64683.0,64682.0,2.57009883]
[1721279215769,0.06293,64683.0,64682.0,2.52139883]
[1721279215988,0.06293,64683.0,64682.0,2.21219383]
[1721279216243,0.06293,64683.0,64682.0,2.18120383]
[1721279216631,0.06293,64683.0,64682.0,2.18165275]
[1721279216926,0.06293,64683.0,64682.0,2.000894]
[1721279217110,0.06293,64683.0,64682.0,1.93708163]
[1721279217462,0.06293,64683.0,64682.0,3.21308163]
[1721279218512,0.06293,64683.0,64682.0,3.21308765]
[1721279219108,0.06293,64683.0,64682.0,3.52229265]
[1721279219455,0.06293,64683.0,64682.0,3.21308765]
[1721279219788,0.06293,64683.0,64682.0,2.87034319]
[1721279219989,0.06293,64683.0,64682.0,3.21310374]
[1721279220409,0.06293,64683.0,64682.0,3.30577918]
[1721279220588,0.06293,64683.0,64682.0,2.87034319]
[1721279220941,0.06293,64683.0,64682.0,2.91668316]
[1721279221731,0.06293,64683.0,64682.0,2.87034319]
[1721279222154,0.06293,64683.0,64682.0,2.74198231]
[1721279222354,0.14043,64683.0,64682.0,2.91669644]
[1721279222559,0.14043,64683.0,64682.0,2.91669743]
[1721279223376,0.14043,64683.0,64682.0,2.87035364]
[1721279223889,0.14043,64683.0,64682.0,2.91669918]
[1721279225528,0.14043,64683.0,64682.0,2.91670053]
[1721279225734,0.14043,64683.0,64682.0,2.87035364]
[1721279228627,0.14043,64683.0,64682.0,2.74198231]
[1721279228828,0.14043,64683.0,64682.0,2.87035361]
[1721279230815,0.06293,64683.0,64682.0,2.87035361]
[1721279231017,0.00083,64683.0,64682.0,3.26182566]
[1721279231238,0.00083,64683.0,64682.0,3.50652812]
[1721279231523,0.00083,64683.0,64682.0,3.7054659]
[1721279231725,0.00083,64683.0,64682.0,3.3962609]
[1721279231947,0.00083,64683.0,64682.0,3.21312566]
[1721279232494,0.00083,64683.0,64682.0,3.21310633]
[1721279232813,0.00083,64683.0,64682.0,3.26180633]
[1721279233014,0.00083,64683.0,64682.0,3.57101133]
[1721279233733,0.00083,64683.0,64682.0,3.26180633]
[1721279234310,0.00083,64683.0,64682.0,3.71601133]
[1721279235247,0.00083,64683.0,64682.0,3.65301133]
[1721279235416,0.00083,64683.0,64682.0,3.68688734]
[1721279235864,0.00083,64683.0,64682.0,3.70545817]
[1721279236663,0.00083,64683.0,64682.0,3.68688734]
[1721279237930,0.00083,64683.0,64682.0,3.63818734]
[1721279238133,0.00083,64683.0,64682.0,3.54088182]
[1721279238342,0.00083,64683.0,64682.0,3.70267589]
[1721279238532,0.00083,64683.0,64682.0,3.52230074]
[1721279238740,0.00083,64683.0,64682.0,3.65675618]
[1721279238947,0.00083,64683.0,64682.0,3.52230074]
[1721279239462,0.00083,64683.0,64682.0,3.57100074]
[1721279239662,0.00083,64683.0,64682.0,3.8155553]
[1721279239840,0.00083,64683.0,64682.0,3.1640657]
[1721279240022,0.00083,64683.0,64682.0,3.81553846]
[1721279240484,0.00083,64683.0,64682.0,3.75136007]
[1721279240896,0.00083,64683.0,64682.0,3.81553931]
[1721279241113,0.00083,64683.0,64682.0,3.87853931]
[1721279241309,0.00083,64683.0,64682.0,3.99190931]
[1721279241728,0.00083,64683.0,64682.0,3.81154696]
[1721279242087,0.00083,64683.0,64682.0,3.81154666]
[1721279242427,0.00083,64683.0,64682.0,4.30083791]
[1721279242647,0.00083,64683.0,64682.0,3.99163291]
[1721279242777,0.00083,64683.0,64682.0,4.13070222]
[1721279243173,0.00083,64683.0,64682.0,4.43990722]
[1721279243389,0.00083,64683.0,64682.0,4.30083791]
[1721279244545,0.00083,64683.0,64682.0,4.43990722]
[1721279244754,0.00084,64693.0,64692.0,1.639906]
[1721279244941,0.00084,64693.0,64692.0,2.5748614]
[1721279245142,0.00084,64693.0,64692.0,2.60116424]
[1721279245399,0.00084,64693.0,64692.0,2.58259632]
[1721279245796,0.00084,64693.0,64692.0,2.46671988]
[1721279246011,0.00084,64693.0,64692.0,2.64661907]
[1721279246374,0.00084,64693.0,64692.0,2.46671988]
[1721279246676,0.00084,64693.0,64692.0,2.64661907]
[1721279246887,0.00084,64693.0,64692.0,2.46671988]
[1721279247080,0.00084,64693.0,64692.0,2.48071988]
[1721279247653,0.00084,64693.0,64692.0,2.49471988]
[1721279248231,0.00084,64693.0,64692.0,2.49464401]
[1721279248563,0.00084,64693.0,64692.0,2.49464358]
[1721279248782,0.00084,64693.0,64692.0,2.80380058]
[1721279248983,0.07165,64705.0,64704.0,1.439645]
[1721279249216,0.00835,64705.0,64704.0,2.23564766]
[1721279249388,0.00835,64705.0,64704.0,1.99310923]
[1721279249621,0.00835,64705.0,64704.0,2.33575008]
[1721279250315,0.00835,64705.0,64704.0,1.92368329]
[1721279250759,0.00835,64705.0,64704.0,1.99310923]
[1721279251071,0.00835,64705.0,64704.0,1.79534979]
[1721279251276,0.00835,64705.0,64704.0,2.33569635]
[1721279251426,0.00835,64705.0,64704.0,1.92366226]
[1721279251633,0.00835,64705.0,64704.0,1.96991719]
[1721279252027,0.00835,64705.0,64704.0,1.99791719]
[1721279252464,0.00835,64705.0,64704.0,1.95166226]
[1721279254351,0.00835,64705.0,64704.0,1.95166501]
[1721279254624,0.00835,64705.0,64704.0,2.26076401]
[1721279254776,0.00835,64705.0,64704.0,1.99789508]
[1721279255176,0.00835,64705.0,64704.0,1.99788364]
[1721279255378,0.00835,64705.0,64704.0,1.95166501]
[1721279256417,0.00835,64705.0,64704.0,1.99788364]
[1721279256549,0.00835,64705.0,64704.0,1.95166501]
[1721279256752,0.00835,64705.0,64704.0,1.99786212]
[1721279257155,0.00835,64705.0,64704.0,1.95166501]
[1721279257498,0.00835,64705.0,64704.0,1.95166181]
[1721279257700,0.00835,64705.0,64704.0,1.99785863]
[1721279258106,0.00835,64705.0,64704.0,1.95166181]
[1721279260657,0.00835,64705.0,64704.0,1.82334979]
[1721279260858,0.00835,64705.0,64704.0,1.95166187]
[1721279261068,0.00835,64705.0,64704.0,1.95166122]
[1721279267007,0.00835,64705.0,64704.0,1.82334979]
[1721279267349,0.00835,64705.0,64704.0,1.95166288]
[1721279270372,0.00835,64705.0,64704.0,1.95166287]
[1721279270789,0.00835,64705.0,64704.0,1.95166299]
[1721279273398,0.00835,64705.0,64704.0,1.97022682]
[1721279273603,0.00835,64705.0,64704.0,2.05112682]
[1721279274294,0.00835,64705.0,64704.0,2.11300682]